{"text_format":"3","workbook":"xlsx","n_sheets":4,"sheets":["Сводка","Итоги","Доходы","Расходы"],"not_rendered":{"defined_names":13},"read":"whole","date_system":"1900"}

{"sheet":"Сводка","index":0,"n_rows":6,"n_cols":3,"rows_kept":6,"merged":[[0,1,0,2],[1,1,1,2]]}
[null,"СЕМЕЙНЫЙ БЮДЖЕТ НА МЕСЯЦ"]
[null,"СВОДКА"]
[null,"Остаток","Сумма"]
[null,"Запланированное сальдо (запланированный доход минус запланированные расходы)",{"$f":"ЗапланированныеДоходы-ЗапланированныеРасходы","v":{"v":1114,"d":"1,114 ₽"}}]
[null,"Фактическое сальдо (фактический доход минус фактические расходы)",{"$f":"ФактическиеДоходы-ФактическиеРасходы","v":{"v":997,"d":"997 ₽"}}]
[null,"Разница (фактическое сальдо минус запланированное)",{"$f":"ФактическоеСальдо-ЗапланированноеСальдо","v":{"v":-117,"d":"-117 ₽"}}]

{"sheet":"Итоги","index":1,"n_rows":6,"n_cols":3,"rows_kept":6,"merged":[[0,1,0,2],[1,1,1,2]]}
[null,{"$f":"Заголовок_книги","v":"СЕМЕЙНЫЙ БЮДЖЕТ НА МЕСЯЦ"}]
[null,"Итоги"]
[null,"Итоги","Сумма"]
[null,"Итоговые запланированные затраты",{"$f":"ЗапланированныеРасходы","v":{"v":4486,"d":"4,486 ₽"}}]
[null,"Итоговые фактические затраты",{"$f":"ФактическиеРасходы","v":{"v":4603,"d":"4,603 ₽"}}]
[null,"Итоговая разница",{"$f":"C4-C5","v":{"v":-117,"d":"-117 ₽"}}]

{"sheet":"Доходы","index":2,"n_rows":7,"n_cols":5,"rows_kept":7,"merged":[[0,1,0,4],[1,1,1,4]]}
[null,{"$f":"Заголовок_книги","v":"СЕМЕЙНЫЙ БЮДЖЕТ НА МЕСЯЦ"}]
[null,"ДОХОДЫ"]
[null,"Запланированный доход","Запланированный","Фактический","Разница"]
[null,"Доход 1",{"v":4000,"d":"4,000.00 ₽"},{"v":4000,"d":"4,000.00 ₽"},{"$f":"ТаблицаДоходов[[#This Row],[Запланированный]]-ТаблицаДоходов[[#This Row],[Фактический]]","v":{"v":0,"d":"0.00 ₽"}}]
[null,"Доход 2",{"v":1300,"d":"1,300.00 ₽"},{"v":1300,"d":"1,300.00 ₽"},{"$f":"ТаблицаДоходов[[#This Row],[Запланированный]]-ТаблицаДоходов[[#This Row],[Фактический]]","v":{"v":0,"d":"0.00 ₽"}}]
[null,"Дополнительный доход",{"v":300,"d":"300.00 ₽"},{"v":300,"d":"300.00 ₽"},{"$f":"ТаблицаДоходов[[#This Row],[Запланированный]]-ТаблицаДоходов[[#This Row],[Фактический]]","v":{"v":0,"d":"0.00 ₽"}}]
[null,"Итоговый доход за месяц",{"$f":"SUBTOTAL(109,ТаблицаДоходов[Запланированный])","v":{"v":5600,"d":"5,600.00 ₽"}},{"$f":"SUBTOTAL(109,ТаблицаДоходов[Фактический])","v":{"v":5600,"d":"5,600.00 ₽"}},{"$f":"SUBTOTAL(109,ТаблицаДоходов[Разница])","v":{"v":0,"d":"0.00 ₽"}}]

{"sheet":"Расходы","index":3,"n_rows":80,"n_cols":6,"rows_kept":80,"merged":[[0,1,0,5],[1,1,1,5],[2,1,2,5]]}
[null,{"$f":"Заголовок_книги","v":"СЕМЕЙНЫЙ БЮДЖЕТ НА МЕСЯЦ"}]
[null,"РАСХОДЫ"]
[]
[null,"Категория","Подкатегория","Запланированный","Фактический","Разница"]
[null,"Жилье","Ипотека или аренда",{"v":1000,"d":"1,000.00 ₽"},{"v":1000,"d":"1,000.00 ₽"},{"$f":"ТаблицаРасходов[[#This Row],[Запланированный]]-ТаблицаРасходов[[#This Row],[Фактический]]","v":{"v":0,"d":"0.00 ₽"}}]
[null,"Жилье","Вторичная ипотека или аренда",{"v":0,"d":"0.00 ₽"},{"v":0,"d":"0.00 ₽"},{"$f":"ТаблицаРасходов[[#This Row],[Запланированный]]-ТаблицаРасходов[[#This Row],[Фактический]]","v":{"v":0,"d":"0.00 ₽"}}]
[null,"Жилье","Телефон",{"v":54,"d":"54.00 ₽"},{"v":100,"d":"100.00 ₽"},{"$f":"ТаблицаРасходов[[#This Row],[Запланированный]]-ТаблицаРасходов[[#This Row],[Фактический]]","v":{"v":-46,"d":"-46.00 ₽"}}]
[null,"Жилье","Электричество",{"v":44,"d":"44.00 ₽"},{"v":56,"d":"56.00 ₽"},{"$f":"ТаблицаРасходов[[#This Row],[Запланированный]]-ТаблицаРасходов[[#This Row],[Фактический]]","v":{"v":-12,"d":"-12.00 ₽"}}]
[null,"Жилье","Газ",{"v":22,"d":"22.00 ₽"},{"v":28,"d":"28.00 ₽"},{"$f":"ТаблицаРасходов[[#This Row],[Запланированный]]-ТаблицаРасходов[[#This Row],[Фактический]]","v":{"v":-6,"d":"-6.00 ₽"}}]
[null,"Жилье","Водоснабжение и канализация",{"v":8,"d":"8.00 ₽"},{"v":8,"d":"8.00 ₽"},{"$f":"ТаблицаРасходов[[#This Row],[Запланированный]]-ТаблицаРасходов[[#This Row],[Фактический]]","v":{"v":0,"d":"0.00 ₽"}}]
[null,"Жилье","Кабельное ТВ",{"v":34,"d":"34.00 ₽"},{"v":34,"d":"34.00 ₽"},{"$f":"ТаблицаРасходов[[#This Row],[Запланированный]]-ТаблицаРасходов[[#This Row],[Фактический]]","v":{"v":0,"d":"0.00 ₽"}}]
[null,"Жилье","Вывоз мусора",{"v":10,"d":"10.00 ₽"},{"v":10,"d":"10.00 ₽"},{"$f":"ТаблицаРасходов[[#This Row],[Запланированный]]-ТаблицаРасходов[[#This Row],[Фактический]]","v":{"v":0,"d":"0.00 ₽"}}]
[null,"Жилье","Ремонт или техническое обслуживание",{"v":23,"d":"23.00 ₽"},{"v":0,"d":"0.00 ₽"},{"$f":"ТаблицаРасходов[[#This Row],[Запланированный]]-ТаблицаРасходов[[#This Row],[Фактический]]","v":{"v":23,"d":"23.00 ₽"}}]
[null,"Жилье","Материалы",{"v":0,"d":"0.00 ₽"},{"v":0,"d":"0.00 ₽"},{"$f":"ТаблицаРасходов[[#This Row],[Запланированный]]-ТаблицаРасходов[[#This Row],[Фактический]]","v":{"v":0,"d":"0.00 ₽"}}]
[null,"Жилье","Другое",{"v":0,"d":"0.00 ₽"},{"v":0,"d":"0.00 ₽"},{"$f":"ТаблицаРасходов[[#This Row],[Запланированный]]-ТаблицаРасходов[[#This Row],[Фактический]]","v":{"v":0,"d":"0.00 ₽"}}]
[null,"Транспорт","Расходы на автомобиль 1",{"v":16,"d":"16.00 ₽"},{"v":66,"d":"66.00 ₽"},{"$f":"ТаблицаРасходов[[#This Row],[Запланированный]]-ТаблицаРасходов[[#This Row],[Фактический]]","v":{"v":-50,"d":"-50.00 ₽"}}]
[null,"Транспорт","Расходы на автомобиль 2",{"v":35,"d":"35.00 ₽"},{"v":42,"d":"42.00 ₽"},{"$f":"ТаблицаРасходов[[#This Row],[Запланированный]]-ТаблицаРасходов[[#This Row],[Фактический]]","v":{"v":-7,"d":"-7.00 ₽"}}]
[null,"Транспорт","Проезд на автобусе/такси",{"v":1,"d":"1.00 ₽"},{"v":62,"d":"62.00 ₽"},{"$f":"ТаблицаРасходов[[#This Row],[Запланированный]]-ТаблицаРасходов[[#This Row],[Фактический]]","v":{"v":-61,"d":"-61.00 ₽"}}]
[null,"Транспорт","Страхование",{"v":91,"d":"91.00 ₽"},{"v":27,"d":"27.00 ₽"},{"$f":"ТаблицаРасходов[[#This Row],[Запланированный]]-ТаблицаРасходов[[#This Row],[Фактический]]","v":{"v":64,"d":"64.00 ₽"}}]
[null,"Транспорт","Лицензирование",{"v":80,"d":"80.00 ₽"},{"v":89,"d":"89.00 ₽"},{"$f":"ТаблицаРасходов[[#This Row],[Запланированный]]-ТаблицаРасходов[[#This Row],[Фактический]]","v":{"v":-9,"d":"-9.00 ₽"}}]
[null,"Транспорт","Топливо",{"v":18,"d":"18.00 ₽"},{"v":93,"d":"93.00 ₽"},{"$f":"ТаблицаРасходов[[#This Row],[Запланированный]]-ТаблицаРасходов[[#This Row],[Фактический]]","v":{"v":-75,"d":"-75.00 ₽"}}]
[null,"Транспорт","Обслуживание",{"v":34,"d":"34.00 ₽"},{"v":37,"d":"37.00 ₽"},{"$f":"ТаблицаРасходов[[#This Row],[Запланированный]]-ТаблицаРасходов[[#This Row],[Фактический]]","v":{"v":-3,"d":"-3.00 ₽"}}]
[null,"Транспорт","Другое",{"v":83,"d":"83.00 ₽"},{"v":61,"d":"61.00 ₽"},{"$f":"ТаблицаРасходов[[#This Row],[Запланированный]]-ТаблицаРасходов[[#This Row],[Фактический]]","v":{"v":22,"d":"22.00 ₽"}}]
[null,"Страхование","Дом",{"v":48,"d":"48.00 ₽"},{"v":63,"d":"63.00 ₽"},{"$f":"ТаблицаРасходов[[#This Row],[Запланированный]]-ТаблицаРасходов[[#This Row],[Фактический]]","v":{"v":-15,"d":"-15.00 ₽"}}]
[null,"Страхование","Здоровье",{"v":21,"d":"21.00 ₽"},{"v":44,"d":"44.00 ₽"},{"$f":"ТаблицаРасходов[[#This Row],[Запланированный]]-ТаблицаРасходов[[#This Row],[Фактический]]","v":{"v":-23,"d":"-23.00 ₽"}}]
[null,"Страхование","Жизнь",{"v":35,"d":"35.00 ₽"},{"v":65,"d":"65.00 ₽"},{"$f":"ТаблицаРасходов[[#This Row],[Запланированный]]-ТаблицаРасходов[[#This Row],[Фактический]]","v":{"v":-30,"d":"-30.00 ₽"}}]
[null,"Страхование","Другое",{"v":14,"d":"14.00 ₽"},{"v":75,"d":"75.00 ₽"},{"$f":"ТаблицаРасходов[[#This Row],[Запланированный]]-ТаблицаРасходов[[#This Row],[Фактический]]","v":{"v":-61,"d":"-61.00 ₽"}}]
[null,"Еда","Продукты",{"v":79,"d":"79.00 ₽"},{"v":0,"d":"0.00 ₽"},{"$f":"ТаблицаРасходов[[#This Row],[Запланированный]]-ТаблицаРасходов[[#This Row],[Фактический]]","v":{"v":79,"d":"79.00 ₽"}}]
[null,"Еда","Рестораны",{"v":56,"d":"56.00 ₽"},{"v":50,"d":"50.00 ₽"},{"$f":"ТаблицаРасходов[[#This Row],[Запланированный]]-ТаблицаРасходов[[#This Row],[Фактический]]","v":{"v":6,"d":"6.00 ₽"}}]
[null,"Еда","Другое",{"v":96,"d":"96.00 ₽"},{"v":23,"d":"23.00 ₽"},{"$f":"ТаблицаРасходов[[#This Row],[Запланированный]]-ТаблицаРасходов[[#This Row],[Фактический]]","v":{"v":73,"d":"73.00 ₽"}}]
[null,"Дети","Врачи и анализы",{"v":90,"d":"90.00 ₽"},{"v":90,"d":"90.00 ₽"},{"$f":"ТаблицаРасходов[[#This Row],[Запланированный]]-ТаблицаРасходов[[#This Row],[Фактический]]","v":{"v":0,"d":"0.00 ₽"}}]
[null,"Дети","Одежда",{"v":33,"d":"33.00 ₽"},{"v":30,"d":"30.00 ₽"},{"$f":"ТаблицаРасходов[[#This Row],[Запланированный]]-ТаблицаРасходов[[#This Row],[Фактический]]","v":{"v":3,"d":"3.00 ₽"}}]
[null,"Дети","Школьное образование",{"v":86,"d":"86.00 ₽"},{"v":64,"d":"64.00 ₽"},{"$f":"ТаблицаРасходов[[#This Row],[Запланированный]]-ТаблицаРасходов[[#This Row],[Фактический]]","v":{"v":22,"d":"22.00 ₽"}}]
[null,"Дети","Школьные принадлежности",{"v":76,"d":"76.00 ₽"},{"v":2,"d":"2.00 ₽"},{"$f":"ТаблицаРасходов[[#This Row],[Запланированный]]-ТаблицаРасходов[[#This Row],[Фактический]]","v":{"v":74,"d":"74.00 ₽"}}]
[null,"Дети","Сборы организации",{"v":60,"d":"60.00 ₽"},{"v":90,"d":"90.00 ₽"},{"$f":"ТаблицаРасходов[[#This Row],[Запланированный]]-ТаблицаРасходов[[#This Row],[Фактический]]","v":{"v":-30,"d":"-30.00 ₽"}}]
[null,"Дети","Деньги на обед",{"v":37,"d":"37.00 ₽"},{"v":60,"d":"60.00 ₽"},{"$f":"ТаблицаРасходов[[#This Row],[Запланированный]]-ТаблицаРасходов[[#This Row],[Фактический]]","v":{"v":-23,"d":"-23.00 ₽"}}]
[null,"Дети","Уход за ребенком",{"v":22,"d":"22.00 ₽"},{"v":70,"d":"70.00 ₽"},{"$f":"ТаблицаРасходов[[#This Row],[Запланированный]]-ТаблицаРасходов[[#This Row],[Фактический]]","v":{"v":-48,"d":"-48.00 ₽"}}]
[null,"Дети","Игрушки/игры",{"v":80,"d":"80.00 ₽"},{"v":21,"d":"21.00 ₽"},{"$f":"ТаблицаРасходов[[#This Row],[Запланированный]]-ТаблицаРасходов[[#This Row],[Фактический]]","v":{"v":59,"d":"59.00 ₽"}}]
[null,"Дети","Другое",{"v":65,"d":"65.00 ₽"},{"v":20,"d":"20.00 ₽"},{"$f":"ТаблицаРасходов[[#This Row],[Запланированный]]-ТаблицаРасходов[[#This Row],[Фактический]]","v":{"v":45,"d":"45.00 ₽"}}]
[null,"Домашние животные","Еда",{"v":37,"d":"37.00 ₽"},{"v":34,"d":"34.00 ₽"},{"$f":"ТаблицаРасходов[[#This Row],[Запланированный]]-ТаблицаРасходов[[#This Row],[Фактический]]","v":{"v":3,"d":"3.00 ₽"}}]
[null,"Домашние животные","Врачи и анализы",{"v":74,"d":"74.00 ₽"},{"v":86,"d":"86.00 ₽"},{"$f":"ТаблицаРасходов[[#This Row],[Запланированный]]-ТаблицаРасходов[[#This Row],[Фактический]]","v":{"v":-12,"d":"-12.00 ₽"}}]
[null,"Домашние животные","Уход",{"v":80,"d":"80.00 ₽"},{"v":92,"d":"92.00 ₽"},{"$f":"ТаблицаРасходов[[#This Row],[Запланированный]]-ТаблицаРасходов[[#This Row],[Фактический]]","v":{"v":-12,"d":"-12.00 ₽"}}]
[null,"Домашние животные","Игрушки",{"v":61,"d":"61.00 ₽"},{"v":22,"d":"22.00 ₽"},{"$f":"ТаблицаРасходов[[#This Row],[Запланированный]]-ТаблицаРасходов[[#This Row],[Фактический]]","v":{"v":39,"d":"39.00 ₽"}}]
[null,"Домашние животные","Другое",{"v":83,"d":"83.00 ₽"},{"v":51,"d":"51.00 ₽"},{"$f":"ТаблицаРасходов[[#This Row],[Запланированный]]-ТаблицаРасходов[[#This Row],[Фактический]]","v":{"v":32,"d":"32.00 ₽"}}]
[null,"Предметы личной гигиены","Врачи и анализы",{"v":28,"d":"28.00 ₽"},{"v":10,"d":"10.00 ₽"},{"$f":"ТаблицаРасходов[[#This Row],[Запланированный]]-ТаблицаРасходов[[#This Row],[Фактический]]","v":{"v":18,"d":"18.00 ₽"}}]
[null,"Предметы личной гигиены","Уход за волосами/ногтями",{"v":25,"d":"25.00 ₽"},{"v":81,"d":"81.00 ₽"},{"$f":"ТаблицаРасходов[[#This Row],[Запланированный]]-ТаблицаРасходов[[#This Row],[Фактический]]","v":{"v":-56,"d":"-56.00 ₽"}}]
[null,"Предметы личной гигиены","Одежда",{"v":59,"d":"59.00 ₽"},{"v":72,"d":"72.00 ₽"},{"$f":"ТаблицаРасходов[[#This Row],[Запланированный]]-ТаблицаРасходов[[#This Row],[Фактический]]","v":{"v":-13,"d":"-13.00 ₽"}}]
[null,"Предметы личной гигиены","Химчистка",{"v":89,"d":"89.00 ₽"},{"v":90,"d":"90.00 ₽"},{"$f":"ТаблицаРасходов[[#This Row],[Запланированный]]-ТаблицаРасходов[[#This Row],[Фактический]]","v":{"v":-1,"d":"-1.00 ₽"}}]
[null,"Предметы личной гигиены","Фитнес-клуб",{"v":78,"d":"78.00 ₽"},{"v":48,"d":"48.00 ₽"},{"$f":"ТаблицаРасходов[[#This Row],[Запланированный]]-ТаблицаРасходов[[#This Row],[Фактический]]","v":{"v":30,"d":"30.00 ₽"}}]
[null,"Предметы личной гигиены","Сборы организации",{"v":6,"d":"6.00 ₽"},{"v":73,"d":"73.00 ₽"},{"$f":"ТаблицаРасходов[[#This Row],[Запланированный]]-ТаблицаРасходов[[#This Row],[Фактический]]","v":{"v":-67,"d":"-67.00 ₽"}}]
[null,"Предметы личной гигиены","Другое",{"v":80,"d":"80.00 ₽"},{"v":66,"d":"66.00 ₽"},{"$f":"ТаблицаРасходов[[#This Row],[Запланированный]]-ТаблицаРасходов[[#This Row],[Фактический]]","v":{"v":14,"d":"14.00 ₽"}}]
[null,"Развлечения","Видео",{"v":11,"d":"11.00 ₽"},{"v":29,"d":"29.00 ₽"},{"$f":"ТаблицаРасходов[[#This Row],[Запланированный]]-ТаблицаРасходов[[#This Row],[Фактический]]","v":{"v":-18,"d":"-18.00 ₽"}}]
[null,"Развлечения","Музыка",{"v":77,"d":"77.00 ₽"},{"v":32,"d":"32.00 ₽"},{"$f":"ТаблицаРасходов[[#This Row],[Запланированный]]-ТаблицаРасходов[[#This Row],[Фактический]]","v":{"v":45,"d":"45.00 ₽"}}]
[null,"Развлечения","Кино",{"v":71,"d":"71.00 ₽"},{"v":43,"d":"43.00 ₽"},{"$f":"ТаблицаРасходов[[#This Row],[Запланированный]]-ТаблицаРасходов[[#This Row],[Фактический]]","v":{"v":28,"d":"28.00 ₽"}}]
[null,"Развлечения","Концерты",{"v":64,"d":"64.00 ₽"},{"v":21,"d":"21.00 ₽"},{"$f":"ТаблицаРасходов[[#This Row],[Запланированный]]-ТаблицаРасходов[[#This Row],[Фактический]]","v":{"v":43,"d":"43.00 ₽"}}]
[null,"Развлечения","Спортивные мероприятия",{"v":47,"d":"47.00 ₽"},{"v":57,"d":"57.00 ₽"},{"$f":"ТаблицаРасходов[[#This Row],[Запланированный]]-ТаблицаРасходов[[#This Row],[Фактический]]","v":{"v":-10,"d":"-10.00 ₽"}}]
[null,"Развлечения","Театр",{"v":28,"d":"28.00 ₽"},{"v":1,"d":"1.00 ₽"},{"$f":"ТаблицаРасходов[[#This Row],[Запланированный]]-ТаблицаРасходов[[#This Row],[Фактический]]","v":{"v":27,"d":"27.00 ₽"}}]
[null,"Развлечения","Другое",{"v":13,"d":"13.00 ₽"},{"v":42,"d":"42.00 ₽"},{"$f":"ТаблицаРасходов[[#This Row],[Запланированный]]-ТаблицаРасходов[[#This Row],[Фактический]]","v":{"v":-29,"d":"-29.00 ₽"}}]
[null,"Кредиты","Личные",{"v":65,"d":"65.00 ₽"},{"v":6,"d":"6.00 ₽"},{"$f":"ТаблицаРасходов[[#This Row],[Запланированный]]-ТаблицаРасходов[[#This Row],[Фактический]]","v":{"v":59,"d":"59.00 ₽"}}]
[null,"Кредиты","На учебу",{"v":100,"d":"100.00 ₽"},{"v":36,"d":"36.00 ₽"},{"$f":"ТаблицаРасходов[[#This Row],[Запланированный]]-ТаблицаРасходов[[#This Row],[Фактический]]","v":{"v":64,"d":"64.00 ₽"}}]
[null,"Кредиты","Кредитная карта",{"v":29,"d":"29.00 ₽"},{"v":69,"d":"69.00 ₽"},{"$f":"ТаблицаРасходов[[#This Row],[Запланированный]]-ТаблицаРасходов[[#This Row],[Фактический]]","v":{"v":-40,"d":"-40.00 ₽"}}]
[null,"Кредиты","Кредитная карта",{"v":64,"d":"64.00 ₽"},{"v":3,"d":"3.00 ₽"},{"$f":"ТаблицаРасходов[[#This Row],[Запланированный]]-ТаблицаРасходов[[#This Row],[Фактический]]","v":{"v":61,"d":"61.00 ₽"}}]
[null,"Кредиты","Кредитная карта",{"v":34,"d":"34.00 ₽"},{"v":35,"d":"35.00 ₽"},{"$f":"ТаблицаРасходов[[#This Row],[Запланированный]]-ТаблицаРасходов[[#This Row],[Фактический]]","v":{"v":-1,"d":"-1.00 ₽"}}]
[null,"Кредиты","Другое",{"v":38,"d":"38.00 ₽"},{"v":52,"d":"52.00 ₽"},{"$f":"ТаблицаРасходов[[#This Row],[Запланированный]]-ТаблицаРасходов[[#This Row],[Фактический]]","v":{"v":-14,"d":"-14.00 ₽"}}]
[null,"Налоги","Федеральные",{"v":84,"d":"84.00 ₽"},{"v":36,"d":"36.00 ₽"},{"$f":"ТаблицаРасходов[[#This Row],[Запланированный]]-ТаблицаРасходов[[#This Row],[Фактический]]","v":{"v":48,"d":"48.00 ₽"}}]
[null,"Налоги","Уровня штата",{"v":2,"d":"2.00 ₽"},{"v":83,"d":"83.00 ₽"},{"$f":"ТаблицаРасходов[[#This Row],[Запланированный]]-ТаблицаРасходов[[#This Row],[Фактический]]","v":{"v":-81,"d":"-81.00 ₽"}}]
[null,"Налоги","Местные",{"v":40,"d":"40.00 ₽"},{"v":20,"d":"20.00 ₽"},{"$f":"ТаблицаРасходов[[#This Row],[Запланированный]]-ТаблицаРасходов[[#This Row],[Фактический]]","v":{"v":20,"d":"20.00 ₽"}}]
[null,"Налоги","Другое",{"v":35,"d":"35.00 ₽"},{"v":72,"d":"72.00 ₽"},{"$f":"ТаблицаРасходов[[#This Row],[Запланированный]]-ТаблицаРасходов[[#This Row],[Фактический]]","v":{"v":-37,"d":"-37.00 ₽"}}]
[null,"Сбережения и инвестиции","Пенсионный счет",{"v":34,"d":"34.00 ₽"},{"v":20,"d":"20.00 ₽"},{"$f":"ТаблицаРасходов[[#This Row],[Запланированный]]-ТаблицаРасходов[[#This Row],[Фактический]]","v":{"v":14,"d":"14.00 ₽"}}]
[null,"Сбережения и инвестиции","Инвестиционный счет",{"v":68,"d":"68.00 ₽"},{"v":98,"d":"98.00 ₽"},{"$f":"ТаблицаРасходов[[#This Row],[Запланированный]]-ТаблицаРасходов[[#This Row],[Фактический]]","v":{"v":-30,"d":"-30.00 ₽"}}]
[null,"Сбережения и инвестиции","ВУЗ",{"v":89,"d":"89.00 ₽"},{"v":68,"d":"68.00 ₽"},{"$f":"ТаблицаРасходов[[#This Row],[Запланированный]]-ТаблицаРасходов[[#This Row],[Фактический]]","v":{"v":21,"d":"21.00 ₽"}}]
[null,"Сбережения и инвестиции","Другое",{"v":82,"d":"82.00 ₽"},{"v":26,"d":"26.00 ₽"},{"$f":"ТаблицаРасходов[[#This Row],[Запланированный]]-ТаблицаРасходов[[#This Row],[Фактический]]","v":{"v":56,"d":"56.00 ₽"}}]
[null,"Подарки и пожертвования","Благотворительный взнос 1",{"v":41,"d":"41.00 ₽"},{"v":85,"d":"85.00 ₽"},{"$f":"ТаблицаРасходов[[#This Row],[Запланированный]]-ТаблицаРасходов[[#This Row],[Фактический]]","v":{"v":-44,"d":"-44.00 ₽"}}]
[null,"Подарки и пожертвования","Благотворительный взнос 2",{"v":0,"d":"0.00 ₽"},{"v":69,"d":"69.00 ₽"},{"$f":"ТаблицаРасходов[[#This Row],[Запланированный]]-ТаблицаРасходов[[#This Row],[Фактический]]","v":{"v":-69,"d":"-69.00 ₽"}}]
[null,"Подарки и пожертвования","Благотворительный взнос 3",{"v":2,"d":"2.00 ₽"},{"v":57,"d":"57.00 ₽"},{"$f":"ТаблицаРасходов[[#This Row],[Запланированный]]-ТаблицаРасходов[[#This Row],[Фактический]]","v":{"v":-55,"d":"-55.00 ₽"}}]
[null,"Юридические расходы","Адвокат",{"v":7,"d":"7.00 ₽"},{"v":98,"d":"98.00 ₽"},{"$f":"ТаблицаРасходов[[#This Row],[Запланированный]]-ТаблицаРасходов[[#This Row],[Фактический]]","v":{"v":-91,"d":"-91.00 ₽"}}]
[null,"Юридические расходы","Алименты",{"v":39,"d":"39.00 ₽"},{"v":85,"d":"85.00 ₽"},{"$f":"ТаблицаРасходов[[#This Row],[Запланированный]]-ТаблицаРасходов[[#This Row],[Фактический]]","v":{"v":-46,"d":"-46.00 ₽"}}]
[null,"Юридические расходы","Оплата залога или платежи по решению суда",{"v":78,"d":"78.00 ₽"},{"v":84,"d":"84.00 ₽"},{"$f":"ТаблицаРасходов[[#This Row],[Запланированный]]-ТаблицаРасходов[[#This Row],[Фактический]]","v":{"v":-6,"d":"-6.00 ₽"}}]
[null,"Юридические расходы","Другое",{"v":93,"d":"93.00 ₽"},{"v":71,"d":"71.00 ₽"},{"$f":"ТаблицаРасходов[[#This Row],[Запланированный]]-ТаблицаРасходов[[#This Row],[Фактический]]","v":{"v":22,"d":"22.00 ₽"}}]
[null,"Итого",{"$nulls":3},{"$f":"SUBTOTAL(109,ТаблицаРасходов[Разница])","v":{"v":-75,"d":"-75.00 ₽"}}]